[Event "Titled Tuesday Blitz November 14 Early 2023"]
[White "Beerdsen, Thomas"]
[Black "Andreikin, Dmitry"]
[WhiteFideId "1030108"]
[BlackFideId "4158814"]
[WhiteElo "2871"]
[BlackElo "3127"]
[Result "0-1"]
[Round "11"]
[TimeControl "180+1"]
[Date "2023.11.14"]
[WhiteClock "0:00:18"]
[BlackClock "0:00:38"]
[Board "4"]

1. e4 {[%clk 0:03:00]}  c5 {[%clk 0:02:57]} 2. Nf3 {[%clk 0:03:01]}  g6 {[%clk 0:02:57]} 3. d4 {[%clk 0:03:00]}  cxd4 {[%clk 0:02:58]} 4. Nxd4 {[%clk 0:03:01]}  Nf6 {[%clk 0:02:57]} 5. Nc3 {[%clk 0:03:01]}  d6 {[%clk 0:02:58]} 6. h3 {[%clk 0:03:00]}  Bg7 {[%clk 0:02:58]} 7. Bc4 {[%clk 0:03:00]}  O-O {[%clk 0:02:57]} 8. O-O {[%clk 0:03:00]}  Nc6 {[%clk 0:02:55]} 9. Nf3 {[%clk 0:03:00]}  b6 {[%clk 0:02:41]} 10. Bg5 {[%clk 0:03:00]}  Bb7 {[%clk 0:02:38]} 11. Qe2 {[%clk 0:03:01]}  h6 {[%clk 0:02:32]} 12. Bh4 {[%clk 0:02:59]}  Nh5 {[%clk 0:02:29]} 13. Rad1 {[%clk 0:02:47]}  g5 {[%clk 0:02:09]} 14. Nxg5 {[%clk 0:02:42]}  hxg5 {[%clk 0:02:09]} 15. Qxh5 {[%clk 0:02:42]}  gxh4 {[%clk 0:02:09]} 16. f4 {[%clk 0:02:38]}  Rc8 {[%clk 0:01:48]} 17. Rd5 {[%clk 0:02:06]}  Ne5 {[%clk 0:01:34]} 18. fxe5 {[%clk 0:01:48]}  Rxc4 {[%clk 0:01:30]} 19. Rd2 {[%clk 0:00:48]}  Bxe4 {[%clk 0:01:25]} 20. Qxh4 {[%clk 0:00:47]}  Bd3 {[%clk 0:01:14]} 21. Rf4 {[%clk 0:00:43]}  Rxf4 {[%clk 0:01:12]} 22. Qxf4 {[%clk 0:00:44]}  Bxe5 {[%clk 0:01:07]} 23. Qg5+ {[%clk 0:00:45]}  Bg6 {[%clk 0:01:07]} 24. Nd5 {[%clk 0:00:45]}  e6 {[%clk 0:00:47]} 25. Ne7+ {[%clk 0:00:46]}  Kg7 {[%clk 0:00:47]} 26. Rf2 {[%clk 0:00:39]}  Bd4 {[%clk 0:00:42]} 27. Qh4 {[%clk 0:00:19]}  Bxf2+ {[%clk 0:00:41]} 28. Kxf2 {[%clk 0:00:20]}  Re8 {[%clk 0:00:39]} 29. Nxg6 {[%clk 0:00:18]}  fxg6 {[%clk 0:00:38]} 0-1


[Site "https://www.chess.com"]

[Event "Titled Tuesday Blitz November 14 Early 2023"]
[White "Bharath Subramaniyam H"]
[Black "Rakhmanov, Aleksandr"]
[WhiteFideId "46634827"]
[BlackFideId "4173708"]
[WhiteElo "2949"]
[BlackElo "2868"]
[Result "0-1"]
[Round "11"]
[TimeControl "180+1"]
[Date "2023.11.14"]
[WhiteClock "0:00:05"]
[BlackClock "0:00:09"]
[Board "7"]

1. e4 {[%clk 0:03:00]}  c5 {[%clk 0:02:59]} 2. Nf3 {[%clk 0:03:01]}  Nf6 {[%clk 0:03:00]} 3. e5 {[%clk 0:03:01]}  Nd5 {[%clk 0:03:00]} 4. Nc3 {[%clk 0:03:01]}  Nxc3 {[%clk 0:03:01]} 5. dxc3 {[%clk 0:03:02]}  Nc6 {[%clk 0:03:02]} 6. Bf4 {[%clk 0:03:02]}  Qc7 {[%clk 0:03:02]} 7. Bd3 {[%clk 0:02:57]}  e6 {[%clk 0:03:03]} 8. Qe2 {[%clk 0:02:58]}  h6 {[%clk 0:03:04]} 9. O-O-O {[%clk 0:02:55]}  Rb8 {[%clk 0:03:04]} 10. Nd2 {[%clk 0:02:53]}  b5 {[%clk 0:02:59]} 11. Ne4 {[%clk 0:02:03]}  Qa5 {[%clk 0:02:45]} 12. Nd6+ {[%clk 0:01:58]}  Bxd6 {[%clk 0:02:45]} 13. exd6 {[%clk 0:01:59]}  b4 {[%clk 0:02:33]} 14. c4 {[%clk 0:01:55]}  Qxa2 {[%clk 0:02:25]} 15. Be5 {[%clk 0:01:33]}  f6 {[%clk 0:02:08]} 16. Qh5+ {[%clk 0:01:32]}  Kf8 {[%clk 0:01:37]} 17. Bg3 {[%clk 0:01:32]}  Qa1+ {[%clk 0:01:26]} 18. Kd2 {[%clk 0:01:32]}  Qxb2 {[%clk 0:01:27]} 19. Qxc5 {[%clk 0:01:33]}  Qc3+ {[%clk 0:01:18]} 20. Ke3 {[%clk 0:01:33]}  b3 {[%clk 0:01:13]} 21. Rb1 {[%clk 0:01:18]}  Nb4 {[%clk 0:00:58]} 22. Qc7 {[%clk 0:01:14]}  Nxc2+ {[%clk 0:00:44]} 23. Ke2 {[%clk 0:01:12]}  Nd4+ {[%clk 0:00:43]} 24. Ke3 {[%clk 0:01:13]}  Nc6 {[%clk 0:00:36]} 25. Rhc1 {[%clk 0:01:01]}  Qd4+ {[%clk 0:00:36]} 26. Ke2 {[%clk 0:01:02]}  Kf7 {[%clk 0:00:37]} 27. Rd1 {[%clk 0:00:43]}  Qc5 {[%clk 0:00:27]} 28. Be4 {[%clk 0:00:27]}  Rb7 {[%clk 0:00:21]} 29. Bxc6 {[%clk 0:00:27]}  Rxc7 {[%clk 0:00:21]} 30. dxc7 {[%clk 0:00:28]}  Qxc4+ {[%clk 0:00:18]} 31. Ke1 {[%clk 0:00:26]}  dxc6 {[%clk 0:00:11]} 32. Bd6 {[%clk 0:00:18]}  e5 {[%clk 0:00:10]} 33. f3 {[%clk 0:00:17]}  Bf5 {[%clk 0:00:10]} 34. Rb2 {[%clk 0:00:15]}  Qc3+ {[%clk 0:00:08]} 35. Rdd2 {[%clk 0:00:16]}  Bc2 {[%clk 0:00:09]} 36. Ba3 {[%clk 0:00:05]}  Rc8 {[%clk 0:00:09]} 0-1


[Site "https://www.chess.com"]

[Event "Titled Tuesday Blitz November 14 Early 2023"]
[White "Henriquez Villagra, Cristobal"]
[Black "Finek, Vaclav"]
[WhiteFideId "3409350"]
[BlackFideId "23718293"]
[WhiteElo "2891"]
[BlackElo "2768"]
[Result "0-1"]
[Round "11"]
[TimeControl "180+1"]
[Date "2023.11.14"]
[WhiteClock "0:00:15"]
[BlackClock "0:00:36"]
[Board "13"]

1. d4 {[%clk 0:03:00]}  d5 {[%clk 0:02:58]} 2. c4 {[%clk 0:03:00]}  c6 {[%clk 0:02:58]} 3. cxd5 {[%clk 0:02:55]}  cxd5 {[%clk 0:02:59]} 4. Nc3 {[%clk 0:02:55]}  Nf6 {[%clk 0:02:57]} 5. Bf4 {[%clk 0:02:55]}  Nc6 {[%clk 0:02:56]} 6. e3 {[%clk 0:02:56]}  Bf5 {[%clk 0:02:48]} 7. Qb3 {[%clk 0:02:55]}  Na5 {[%clk 0:02:46]} 8. Qa4+ {[%clk 0:02:55]}  Bd7 {[%clk 0:02:46]} 9. Qc2 {[%clk 0:02:56]}  e6 {[%clk 0:02:46]} 10. Nf3 {[%clk 0:02:54]}  Rc8 {[%clk 0:02:40]} 11. Bd3 {[%clk 0:02:41]}  Bb4 {[%clk 0:02:33]} 12. O-O {[%clk 0:02:41]}  O-O {[%clk 0:02:33]} 13. Rfc1 {[%clk 0:02:38]}  h6 {[%clk 0:02:24]} 14. Nd2 {[%clk 0:02:29]}  b5 {[%clk 0:02:18]} 15. Rab1 {[%clk 0:01:38]}  Nc4 {[%clk 0:02:00]} 16. Nxc4 {[%clk 0:01:27]}  dxc4 {[%clk 0:01:43]} 17. Bf1 {[%clk 0:01:24]}  Bc6 {[%clk 0:01:41]} 18. f3 {[%clk 0:01:20]}  Bxc3 {[%clk 0:01:37]} 19. bxc3 {[%clk 0:01:21]}  Nd5 {[%clk 0:01:37]} 20. Qd2 {[%clk 0:01:12]}  Nxf4 {[%clk 0:01:35]} 21. exf4 {[%clk 0:01:13]}  a6 {[%clk 0:01:25]} 22. Re1 {[%clk 0:01:12]}  Bd5 {[%clk 0:01:21]} 23. Re5 {[%clk 0:01:12]}  f5 {[%clk 0:01:17]} 24. Qb2 {[%clk 0:01:05]}  Rf7 {[%clk 0:01:05]} 25. Qb4 {[%clk 0:01:02]}  Rb7 {[%clk 0:01:02]} 26. a4 {[%clk 0:00:35]}  a5 {[%clk 0:00:59]} 27. Qa3 {[%clk 0:00:35]}  b4 {[%clk 0:00:52]} 28. cxb4 {[%clk 0:00:34]}  axb4 {[%clk 0:00:43]} 29. Rxb4 {[%clk 0:00:15]}  Qf8 {[%clk 0:00:36]} 0-1


[Site "https://www.chess.com"]

[Event "Titled Tuesday Blitz November 14 Early 2023"]
[White "Szpar, Milosz"]
[Black "Pranav, V"]
[WhiteFideId "1184989"]
[BlackFideId "25060783"]
[WhiteElo "2837"]
[BlackElo "3075"]
[Result "1-0"]
[Round "11"]
[TimeControl "180+1"]
[Date "2023.11.14"]
[WhiteClock "0:00:05"]
[BlackClock "0:00:01"]
[Board "15"]

1. e4 {[%clk 0:03:00]}  e5 {[%clk 0:02:57]} 2. Nf3 {[%clk 0:03:01]}  Nc6 {[%clk 0:02:56]} 3. Nc3 {[%clk 0:03:02]}  Nf6 {[%clk 0:02:57]} 4. Bb5 {[%clk 0:03:01]}  Bb4 {[%clk 0:02:55]} 5. O-O {[%clk 0:03:01]}  O-O {[%clk 0:02:55]} 6. d3 {[%clk 0:03:00]}  Bxc3 {[%clk 0:02:56]} 7. bxc3 {[%clk 0:03:01]}  d6 {[%clk 0:02:57]} 8. Re1 {[%clk 0:02:57]}  Nb8 {[%clk 0:02:56]} 9. d4 {[%clk 0:02:54]}  Qe7 {[%clk 0:02:52]} 10. a4 {[%clk 0:02:53]}  a6 {[%clk 0:02:49]} 11. Bd3 {[%clk 0:02:51]}  Nc6 {[%clk 0:02:40]} 12. h3 {[%clk 0:02:50]}  h6 {[%clk 0:02:36]} 13. Rb1 {[%clk 0:02:48]}  Rd8 {[%clk 0:02:31]} 14. Be3 {[%clk 0:02:39]}  Qe8 {[%clk 0:02:29]} 15. d5 {[%clk 0:02:28]}  Ne7 {[%clk 0:02:28]} 16. a5 {[%clk 0:02:28]}  Ng6 {[%clk 0:02:18]} 17. c4 {[%clk 0:02:28]}  Nh5 {[%clk 0:02:17]} 18. c5 {[%clk 0:02:27]}  Nhf4 {[%clk 0:02:15]} 19. Bf1 {[%clk 0:02:27]}  f5 {[%clk 0:02:12]} 20. cxd6 {[%clk 0:02:27]}  cxd6 {[%clk 0:02:13]} 21. Bb6 {[%clk 0:01:53]}  fxe4 {[%clk 0:02:11]} 22. Nd2 {[%clk 0:01:53]}  Rd7 {[%clk 0:01:16]} 23. Nxe4 {[%clk 0:01:49]}  Nf8 {[%clk 0:01:16]} 24. g3 {[%clk 0:01:43]}  N4g6 {[%clk 0:01:15]} 25. c4 {[%clk 0:01:40]}  Qf7 {[%clk 0:00:55]} 26. Rb3 {[%clk 0:01:25]}  Nh8 {[%clk 0:00:39]} 27. Rf3 {[%clk 0:01:24]}  Qe7 {[%clk 0:00:39]} 28. c5 {[%clk 0:01:23]}  Nf7 {[%clk 0:00:35]} 29. c6 {[%clk 0:00:51]}  Rc7 {[%clk 0:00:31]} 30. Qb3 {[%clk 0:00:29]}  bxc6 {[%clk 0:00:22]} 31. Bxc7 {[%clk 0:00:29]}  Qxc7 {[%clk 0:00:22]} 32. dxc6 {[%clk 0:00:26]}  Be6 {[%clk 0:00:21]} 33. Bc4 {[%clk 0:00:26]}  Re8 {[%clk 0:00:05]} 34. Bd5 {[%clk 0:00:16]}  Qxa5 {[%clk 0:00:03]} 35. Rd1 {[%clk 0:00:12]}  Qc7 {[%clk 0:00:03]} 36. Qc4 {[%clk 0:00:08]}  a5 {[%clk 0:00:03]} 37. Rb3 {[%clk 0:00:08]}  Bxd5 {[%clk 0:00:01]} 38. Qxd5 {[%clk 0:00:08]}  Ne6 {[%clk 0:00:01]} 39. Rb7 {[%clk 0:00:08]}  Qc8 {[%clk 0:00:02]} 40. Rxf7 {[%clk 0:00:07]}  Nd4 {[%clk 0:00:01]} 41. Re7+ {[%clk 0:00:05]}  Kh7 {[%clk 0:00:01]} 42. Rxe8 {[%clk 0:00:05]}  Qxe8 {[%clk 0:00:02]} 43. Rxd4 {[%clk 0:00:03]}  exd4 {[%clk 0:00:02]} 44. Nxd6 {[%clk 0:00:03]}  Qe2 {[%clk 0:00:01]} 45. Qxd4 {[%clk 0:00:03]}  Qe1+ {[%clk 0:00:01]} 46. Kg2 {[%clk 0:00:03]}  Qc1 {[%clk 0:00:02]} 47. Qe4+ {[%clk 0:00:03]}  Kg8 {[%clk 0:00:02]} 48. Nf5 {[%clk 0:00:04]}  a4 {[%clk 0:00:02]} 49. Qxa4 {[%clk 0:00:04]}  Kh7 {[%clk 0:00:01]} 50. Qe4 {[%clk 0:00:04]}  Kg6 {[%clk 0:00:01]} 51. Nd4+ {[%clk 0:00:04]}  Kf7 {[%clk 0:00:02]} 52. Qe6+ {[%clk 0:00:04]}  Kf8 {[%clk 0:00:03]} 53. Nf5 {[%clk 0:00:05]}  g6 {[%clk 0:00:01]} 54. Qe7+ {[%clk 0:00:05]} 1-0


[Site "https://www.chess.com"]

[Event "Titled Tuesday Blitz November 14 Early 2023"]
[White "Erdogmus, Yagiz Kaan"]
[Black "Idani, Pouya"]
[WhiteFideId "44599790"]
[BlackFideId "12510130"]
[WhiteElo "3027"]
[BlackElo "2844"]
[Result "1-0"]
[Round "11"]
[TimeControl "180+1"]
[Date "2023.11.14"]
[WhiteClock "0:00:13"]
[BlackClock "0:00:12"]
[Board "16"]

1. e4 {[%clk 0:03:00]}  c5 {[%clk 0:02:55]} 2. Nf3 {[%clk 0:03:00]}  d6 {[%clk 0:02:55]} 3. d4 {[%clk 0:03:01]}  cxd4 {[%clk 0:02:56]} 4. Nxd4 {[%clk 0:03:01]}  Nf6 {[%clk 0:02:57]} 5. Nc3 {[%clk 0:03:02]}  Nc6 {[%clk 0:02:58]} 6. Bg5 {[%clk 0:03:01]}  e6 {[%clk 0:02:57]} 7. Qd3 {[%clk 0:02:52]}  Bd7 {[%clk 0:02:56]} 8. Ndb5 {[%clk 0:02:51]}  Qb8 {[%clk 0:02:51]} 9. O-O-O {[%clk 0:02:45]}  Ng4 {[%clk 0:02:41]} 10. Bh4 {[%clk 0:02:12]}  g5 {[%clk 0:02:18]} 11. Bg3 {[%clk 0:02:08]}  Nge5 {[%clk 0:02:17]} 12. Nxd6+ {[%clk 0:02:05]}  Bxd6 {[%clk 0:02:16]} 13. Qxd6 {[%clk 0:02:05]}  Qxd6 {[%clk 0:02:17]} 14. Rxd6 {[%clk 0:02:06]}  Ke7 {[%clk 0:02:16]} 15. Rd2 {[%clk 0:02:06]}  f6 {[%clk 0:02:14]} 16. Be2 {[%clk 0:02:02]}  Rad8 {[%clk 0:02:02]} 17. Rhd1 {[%clk 0:02:01]}  Be8 {[%clk 0:01:59]} 18. f3 {[%clk 0:01:58]}  Rxd2 {[%clk 0:01:57]} 19. Rxd2 {[%clk 0:01:59]}  a6 {[%clk 0:01:51]} 20. a4 {[%clk 0:01:55]}  h5 {[%clk 0:01:50]} 21. Bf2 {[%clk 0:01:55]}  Nd7 {[%clk 0:01:47]} 22. b3 {[%clk 0:01:49]}  h4 {[%clk 0:01:46]} 23. Kb2 {[%clk 0:01:48]}  h3 {[%clk 0:01:42]} 24. g3 {[%clk 0:01:47]}  Bh5 {[%clk 0:01:41]} 25. f4 {[%clk 0:01:37]}  Bxe2 {[%clk 0:01:40]} 26. Rxe2 {[%clk 0:01:37]}  g4 {[%clk 0:01:34]} 27. Nb1 {[%clk 0:01:31]}  Rc8 {[%clk 0:01:29]} 28. Nd2 {[%clk 0:01:29]}  b5 {[%clk 0:01:17]} 29. axb5 {[%clk 0:01:27]}  axb5 {[%clk 0:01:18]} 30. c4 {[%clk 0:01:25]}  bxc4 {[%clk 0:01:13]} 31. Nxc4 {[%clk 0:01:26]}  Rb8 {[%clk 0:01:13]} 32. Kc3 {[%clk 0:01:25]}  e5 {[%clk 0:01:10]} 33. Ne3 {[%clk 0:01:21]}  Rxb3+ {[%clk 0:00:41]} 34. Kxb3 {[%clk 0:01:16]}  Nd4+ {[%clk 0:00:41]} 35. Kc4 {[%clk 0:01:12]}  Nxe2 {[%clk 0:00:41]} 36. Kd3 {[%clk 0:01:10]}  Nd4 {[%clk 0:00:35]} 37. Nd5+ {[%clk 0:01:03]}  Kd6 {[%clk 0:00:26]} 38. Bxd4 {[%clk 0:01:04]}  exd4 {[%clk 0:00:27]} 39. Kxd4 {[%clk 0:01:05]}  Nc5 {[%clk 0:00:20]} 40. Ne3 {[%clk 0:01:05]}  Ne6+ {[%clk 0:00:20]} 41. Kc4 {[%clk 0:00:56]}  Nc5 {[%clk 0:00:20]} 42. Nf5+ {[%clk 0:00:47]}  Kc6 {[%clk 0:00:20]} 43. Ne7+ {[%clk 0:00:48]}  Kd6 {[%clk 0:00:20]} 44. e5+ {[%clk 0:00:30]}  fxe5 {[%clk 0:00:17]} 45. fxe5+ {[%clk 0:00:30]}  Kxe5 {[%clk 0:00:17]} 46. Kxc5 {[%clk 0:00:30]}  Ke4 {[%clk 0:00:18]} 47. Nd5 {[%clk 0:00:30]}  Ke5 {[%clk 0:00:17]} 48. Ne3 {[%clk 0:00:29]}  Ke4 {[%clk 0:00:16]} 49. Nxg4 {[%clk 0:00:30]}  Kf3 {[%clk 0:00:17]} 50. Kd4 {[%clk 0:00:12]}  Kxg4 {[%clk 0:00:17]} 51. Ke4 {[%clk 0:00:12]}  Kg5 {[%clk 0:00:18]} 52. Kf3 {[%clk 0:00:13]}  Kh5 {[%clk 0:00:14]} 53. Kf4 {[%clk 0:00:13]}  Kh6 {[%clk 0:00:12]} 54. Kg4 {[%clk 0:00:13]} 1-0


[Site "https://www.chess.com"]

[Event "Titled Tuesday Blitz November 14 Early 2023"]
[White "Demchenko, Anton"]
[Black "Timofeev, Artyom"]
[WhiteFideId "4160258"]
[BlackFideId "4140419"]
[WhiteElo "3009"]
[BlackElo "2836"]
[Result "0-1"]
[Round "11"]
[TimeControl "180+1"]
[Date "2023.11.14"]
[WhiteClock "0:00:00"]
[BlackClock "0:00:31"]
[Board "17"]

1. e4 {[%clk 0:03:00]}  c5 {[%clk 0:02:59]} 2. Nf3 {[%clk 0:02:59]}  d6 {[%clk 0:02:59]} 3. d4 {[%clk 0:02:59]}  cxd4 {[%clk 0:03:00]} 4. Nxd4 {[%clk 0:03:00]}  Nf6 {[%clk 0:03:00]} 5. Nc3 {[%clk 0:03:01]}  g6 {[%clk 0:03:00]} 6. Be3 {[%clk 0:02:58]}  Bg7 {[%clk 0:03:00]} 7. Be2 {[%clk 0:02:50]}  Nc6 {[%clk 0:02:57]} 8. O-O {[%clk 0:02:50]}  O-O {[%clk 0:02:57]} 9. a4 {[%clk 0:02:48]}  Bd7 {[%clk 0:02:55]} 10. Qd2 {[%clk 0:02:45]}  Rc8 {[%clk 0:02:53]} 11. f3 {[%clk 0:02:40]}  Ne5 {[%clk 0:02:47]} 12. Rfd1 {[%clk 0:02:38]}  Nc4 {[%clk 0:02:42]} 13. Bxc4 {[%clk 0:02:39]}  Rxc4 {[%clk 0:02:42]} 14. Nde2 {[%clk 0:02:39]}  Qb8 {[%clk 0:02:27]} 15. b3 {[%clk 0:02:26]}  Rcc8 {[%clk 0:02:24]} 16. Ra2 {[%clk 0:02:03]}  a6 {[%clk 0:02:23]} 17. a5 {[%clk 0:02:01]}  Be6 {[%clk 0:02:21]} 18. Bd4 {[%clk 0:01:44]}  Rfe8 {[%clk 0:02:15]} 19. Na4 {[%clk 0:01:34]}  d5 {[%clk 0:01:56]} 20. Bxf6 {[%clk 0:01:22]}  exf6 {[%clk 0:01:55]} 21. exd5 {[%clk 0:01:22]}  Bxd5 {[%clk 0:01:55]} 22. Nb6 {[%clk 0:01:23]}  Be6 {[%clk 0:01:38]} 23. Nxc8 {[%clk 0:01:22]}  Bxc8 {[%clk 0:01:35]} 24. c4 {[%clk 0:01:22]}  b6 {[%clk 0:01:35]} 25. Nd4 {[%clk 0:00:46]}  bxa5 {[%clk 0:01:31]} 26. Qxa5 {[%clk 0:00:46]}  Bb7 {[%clk 0:01:29]} 27. c5 {[%clk 0:00:41]}  f5 {[%clk 0:01:27]} 28. Rad2 {[%clk 0:00:41]}  Qf4 {[%clk 0:01:15]} 29. c6 {[%clk 0:00:30]}  Qe3+ {[%clk 0:01:04]} 30. Kf1 {[%clk 0:00:30]}  Bxd4 {[%clk 0:01:01]} 31. Rxd4 {[%clk 0:00:30]}  Bxc6 {[%clk 0:01:01]} 32. Qxa6 {[%clk 0:00:28]}  Bxf3 {[%clk 0:00:54]} 33. gxf3 {[%clk 0:00:23]}  Qxf3+ {[%clk 0:00:54]} 34. Kg1 {[%clk 0:00:23]}  Re2 {[%clk 0:00:48]} 35. Qxe2 {[%clk 0:00:19]}  Qxe2 {[%clk 0:00:48]} 36. b4 {[%clk 0:00:14]}  f4 {[%clk 0:00:47]} 37. R4d2 {[%clk 0:00:08]}  Qe3+ {[%clk 0:00:46]} 38. Kf1 {[%clk 0:00:08]}  Qb3 {[%clk 0:00:37]} 39. Re1 {[%clk 0:00:03]}  Qxb4 {[%clk 0:00:36]} 40. Rf2 {[%clk 0:00:04]}  Kg7 {[%clk 0:00:35]} 41. h3 {[%clk 0:00:03]}  g5 {[%clk 0:00:35]} 42. Re5 {[%clk 0:00:03]}  h6 {[%clk 0:00:33]} 43. Kg2 {[%clk 0:00:03]}  Qb7+ {[%clk 0:00:32]} 44. Kh2 {[%clk 0:00:02]}  Qc7 {[%clk 0:00:32]} 45. Ree2 {[%clk 0:00:00]}  f3+ {[%clk 0:00:31]} 0-1


[Site "https://www.chess.com"]

[Event "Titled Tuesday Blitz November 14 Early 2023"]
[White "Chigaev, Maksim"]
[Black "Borsuk, Konstantin"]
[WhiteFideId "4108116"]
[BlackFideId "14113406"]
[WhiteElo "2916"]
[BlackElo "2789"]
[Result "1-0"]
[Round "11"]
[TimeControl "180+1"]
[Date "2023.11.14"]
[WhiteClock "0:00:04"]
[BlackClock "0:00:00"]
[Board "21"]

1. d4 {[%clk 0:03:00]}  Nf6 {[%clk 0:02:59]} 2. c4 {[%clk 0:03:01]}  e6 {[%clk 0:02:59]} 3. g3 {[%clk 0:03:01]}  Be7 {[%clk 0:02:55]} 4. Bg2 {[%clk 0:03:01]}  O-O {[%clk 0:02:55]} 5. e4 {[%clk 0:02:58]}  d5 {[%clk 0:02:54]} 6. cxd5 {[%clk 0:02:55]}  exd5 {[%clk 0:02:53]} 7. e5 {[%clk 0:02:55]}  Ne4 {[%clk 0:02:52]} 8. Nc3 {[%clk 0:02:56]}  Nxc3 {[%clk 0:02:50]} 9. bxc3 {[%clk 0:02:56]}  c5 {[%clk 0:02:49]} 10. Ne2 {[%clk 0:02:54]}  Nc6 {[%clk 0:02:48]} 11. O-O {[%clk 0:02:53]}  cxd4 {[%clk 0:02:46]} 12. cxd4 {[%clk 0:02:53]}  Be6 {[%clk 0:02:30]} 13. Nf4 {[%clk 0:02:45]}  Qd7 {[%clk 0:02:28]} 14. Rb1 {[%clk 0:02:44]}  Na5 {[%clk 0:02:21]} 15. Nxe6 {[%clk 0:02:37]}  fxe6 {[%clk 0:02:21]} 16. Qg4 {[%clk 0:02:36]}  Rac8 {[%clk 0:02:15]} 17. Bh6 {[%clk 0:02:27]}  Rf7 {[%clk 0:02:09]} 18. Bh3 {[%clk 0:02:27]}  Rc6 {[%clk 0:02:09]} 19. Bf4 {[%clk 0:01:59]}  Nc4 {[%clk 0:02:02]} 20. Rfd1 {[%clk 0:01:48]}  b6 {[%clk 0:01:51]} 21. Rb3 {[%clk 0:01:46]}  Na5 {[%clk 0:01:33]} 22. Rf3 {[%clk 0:01:43]}  Bf8 {[%clk 0:01:32]} 23. Bd2 {[%clk 0:01:32]}  Rxf3 {[%clk 0:01:30]} 24. Qxf3 {[%clk 0:01:32]}  Nc4 {[%clk 0:01:30]} 25. Bf4 {[%clk 0:01:29]}  b5 {[%clk 0:01:28]} 26. Bg4 {[%clk 0:01:23]}  a5 {[%clk 0:01:25]} 27. h4 {[%clk 0:01:24]}  b4 {[%clk 0:01:25]} 28. h5 {[%clk 0:01:24]}  h6 {[%clk 0:01:18]} 29. Bh3 {[%clk 0:01:10]}  Qf7 {[%clk 0:01:15]} 30. Bf1 {[%clk 0:01:02]}  a4 {[%clk 0:01:14]} 31. Bd3 {[%clk 0:00:59]}  Nb2 {[%clk 0:01:04]} 32. Bg6 {[%clk 0:00:58]}  Qd7 {[%clk 0:00:57]} 33. Rc1 {[%clk 0:00:46]}  Nc4 {[%clk 0:00:44]} 34. Bb1 {[%clk 0:00:38]}  Qf7 {[%clk 0:00:39]} 35. Bg6 {[%clk 0:00:33]}  Qb7 {[%clk 0:00:32]} 36. Rb1 {[%clk 0:00:20]}  Qd7 {[%clk 0:00:24]} 37. g4 {[%clk 0:00:19]}  Na3 {[%clk 0:00:20]} 38. Rc1 {[%clk 0:00:15]}  Rxc1+ {[%clk 0:00:19]} 39. Bxc1 {[%clk 0:00:15]}  Nc4 {[%clk 0:00:20]} 40. g5 {[%clk 0:00:15]}  Qe7 {[%clk 0:00:18]} 41. Kh2 {[%clk 0:00:12]}  hxg5 {[%clk 0:00:10]} 42. Bxg5 {[%clk 0:00:13]}  Qd7 {[%clk 0:00:08]} 43. Bb1 {[%clk 0:00:11]}  Na3 {[%clk 0:00:05]} 44. Bg6 {[%clk 0:00:09]}  Nc4 {[%clk 0:00:04]} 45. Bc1 {[%clk 0:00:04]}  Qe7 {[%clk 0:00:02]} 46. Kh3 {[%clk 0:00:05]}  b3 {[%clk 0:00:01]} 47. axb3 {[%clk 0:00:04]}  axb3 {[%clk 0:00:02]} 48. Qxb3 {[%clk 0:00:04]}  Qd8 {[%clk 0:00:02]} 49. Qf3 {[%clk 0:00:04]}  Qe7 {[%clk 0:00:02]} 50. Bg5 {[%clk 0:00:05]}  Qd7 {[%clk 0:00:02]} 51. Bh4 {[%clk 0:00:05]}  Na5 {[%clk 0:00:02]} 52. Bb1 {[%clk 0:00:04]}  Nc6 {[%clk 0:00:00]} 53. Qd3 {[%clk 0:00:04]} 1-0


[Site "https://www.chess.com"]